{"text_format":"1","workbook":"xlsx","n_sheets":9,"sheets":["Introduction","General_database","Working_database","Results_field_visit","Compare_field_data","ELFM_ranking","ELFM_site","Points_scenario","QR_general"],"not_rendered":{"charts":2,"images":5,"macros":1,"external_links":0,"defined_names":4,"comments":0,"pivot_tables":0},"unopened":[],"bounds":{"document_bytes":16777216,"sheet_cells":100000,"rows_first":2000,"rows_last":500,"rows_between":2000,"halvings":0,"cell_chars":16384,"cell_head_chars":4096},"cells_cut":0,"cells_raw":0,"read":"whole","date_system":"1900"}

{"sheet":"Introduction","index":0,"n_rows":43,"n_cols":16,"rows_kept":43,"cut":false,"hidden":false,"merged":[[42,1,42,10],[14,1,14,14],[18,1,18,15],[16,1,16,14]]}
[]
[]
[]
[null,null,null,null,null,null,null,null,null,null,null,null,null,null,null,"©RAWFILL"]
[]
[]
[]
[]
[]
[]
[]
[null,"Cedalion tool"]
[null,"Decision support tool (DST) to evaluate the mining and redevelopment potential of landfills."]
[]
[null,"The aim of this tool, developed in the framework of the RAWFILL project,  is to assess the enhanced landfill mining (ELFM) potential of sites regarding three different scenario's: Waste-to-Materials, Waste-to-Land and Waste-to-Energy. If the potential of these three scenarios is estimated to be low, potentially ‘Interim Use’ can offer interesting possibilities. The RAWFILL methodology is based on previous DST methodologies (e.g. FLAMINCO), advise of partners and stakeholders and research on real life cases."]
[]
[null,"An e-learning module has been created to guide the user through the Cedalion tool. The goal of the Cedalion tool is twofold: discover the ELFM potential for existing landfills (interesting in case of large datasets) and compare the most suitable ELFM option per landfill (in case of limited data). Another goal is to update the existing information available for a landfill, provided by local RAWFILL authorities, through a site visit with the Cedalion field app. "]
[]
[null,"Hereunder you can find a schematic overview on how the tool works. In the header of every tab, you can find additional information on how to use the tool.\t"]
[]
[]
[]
[]
[]
[]
[]
[]
[]
[]
[]
[]
[]
[]
[]
[]
[null,"Curious to discover the landfill mining potential? Watch the e-learning and follow the guidelines in the heading of the different tabs."]
[null,"The e-learning module can be found on www.rawfill-elearning.eu."]
[]
[null,"Thank you for your contribution to a sustainable use of landfills!"]
[]
[null,"RAWFILL partners,"]
[]
[null,"SPAQuE, OVAM, SAS Les Champs Jouault, Altrasol, VITO (Cleantech Flanders),  \nBergischer Abfallwirtschaftsverband, British Geological Survey, University of Liège\t"]

{"sheet":"General_database","index":1,"n_rows":15,"n_cols":51,"rows_kept":15,"cut":false,"hidden":false,"merged":[[3,0,3,8],[3,24,3,27],[3,28,3,31],[3,37,3,49],[4,37,4,39],[3,32,3,36],[3,9,3,21],[4,48,4,49],[4,40,4,41],[4,42,4,43],[4,44,4,45],[4,46,4,47]]}
["General database"]
["You cannot change the content of the general database. Do not manually copy data from general to working database, use the buttons in the working database tab."]
[]
["General information",null,null,null,null,null,null,null,null,"Criteria 1 - Type",null,null,null,null,null,null,null,null,null,null,null,null,null,"Criteria 2 - Age","Criteria 3 - Volume",null,null,null,"Criteria 4 - Use",null,null,null,"Criteria 5 - Accessibility",null,null,null,null,"Criteria 6 - Surroundings",null,null,null,null,null,null,null,null,null,null,null,null,"General remarks"]
[null,null,null,null,null,null,null,null,null,null,null,null,null,null,null,null,null,null,null,null,null,null,null,null,null,null,null,null,null,null,null,null,null,null,null,null,null,null,null,null,"Residential",null,"Recreational / Touristic",null,"Agricultural",null,"Industrial",null,"Natural"]
["DLM ID","Landfill name","Municipality","Postal code","Street","N°","Cadastral codes","X coordinate","Y coordinate","MSW","Industrial","Dredging materials","WWT sludge","Inert","Fly ash","Asbestos","Metal slags","Mining waste","Military waste","Other","Nature of mixed landfill?","Mono landfill?","Harmful waste spotted?","Period of main activities","Surface area (m²)","Depth below ground level (m)","Height above ground level (m)","Volume (m³)","Type of cover","Surface conditions","Slope angle","Erosion","Paved roads?","Accessible with heavy equipment?","Stations","Max. distance (km)","CEMT canals","Drinking water protection area","Nature area","Flooding risk","Present Res","Future Res","Present Rec","Future Rec","Present Agr","Future Agr","Present Ind","Future Ind","Present Nat","Future Nat","Remarks"]
[1]
[2]
[3]
[4]
[5]
[6]
[7]
[8]
[9]

{"sheet":"Working_database","index":2,"n_rows":11,"n_cols":51,"rows_kept":11,"cut":false,"hidden":false,"merged":[[1,10,1,11],[2,10,2,11],[8,0,8,8],[9,40,9,41],[9,42,9,43],[8,9,8,21],[8,28,8,31],[8,32,8,36],[8,37,8,49],[9,37,9,39],[9,46,9,47],[9,48,9,49],[9,44,9,45],[8,24,8,27]]}
["Working database "]
["Please select the landfill sites for which you would like to run the ranking tool.",null,null,null,null,null,null,"Select by 'Site ID'",null,null,null,null,"+","Select",null,"Example: 1-10;12-14;36;115-129"]
[null,null,null,null,null,null,null,"Select by 'Municipality'",null,null,null,null,"+","Select"]
["The ranking tool only works with data in the working database, ",null,null,null,null,null,null,"Copy all data",null,null,null,null,null,"Select"]
["copied from the general database with the predefined buttons.",null,null,null,null,null,null,"Reset working database"]
[null,null,null,null,null,null,null,"Show ELFM ranking without data field visit",null,null,null,null,null,"Select"]
[null,null,null,null,null,null,null,"Or collect data through field questionnaire.",null,null,null,"https://tinyurl.com/cedalionrawfill",null,null,"or use QR code"]
[]
["General information",null,null,null,null,null,null,null,null,"Criteria 1 - Type",null,null,null,null,null,null,null,null,null,null,null,null,null,"Criteria 2 - Age","Criteria 3 - Volume",null,null,null,"Criteria 4 - Use",null,null,null,"Criteria 5 - Accessibility",null,null,null,null,"Criteria 6 - Surroundings",null,null,null,null,null,null,null,null,null,null,null,null,"General remarks"]
[null,null,null,null,null,null,null,null,null,null,null,null,null,null,null,null,null,null,null,null,null,null,null,null,null,null,null,null,null,null,null,null,null,null,null,null,null,null,null,null,"Residential",null,"Recreational / Touristic",null,"Agricultural",null,"Industrial",null,"Natural"]
["DLM ID","Landfill name","Municipality","Postal code","Street","N°","Cadastral codes","X coordinate","Y coordinate","MSW","Industrial","Dredging materials","WWT sludge","Inert","Fly ash","Asbestos","Metal slags","Mining waste","Military waste","Other","Nature of mixed landfill?","Mono landfill?","Harmful waste spotted?","Period of main activities","Surface area (m²)","Depth below ground level (m)","Height above ground level (m)","Volume (m³)","Type of cover","Surface conditions","Slope angle","Erosion","Paved roads?","Accessible with heavy equipment?","Stations","Max. distance (km)","CEMT canals","Drinking water protection area","Nature area","Flooding risk","Present Res","Future Res","Present Rec","Future Rec","Present Agr","Future Agr","Present Ind","Future Ind","Present Nat","Future Nat","Remarks"]

{"sheet":"Results_field_visit","index":3,"n_rows":7,"n_cols":22,"rows_kept":7,"cut":false,"hidden":false,"merged":[[5,11,5,12],[5,13,5,14],[5,15,5,16],[5,17,5,18],[5,19,5,20],[4,5,4,8],[4,11,4,20],[4,2,4,4],[4,9,4,10],[4,0,4,1]]}
["Results of the site visit"]
[]
["Please copy the results of your site visit here. An Excel table has been sent to your e-mail address, after submitting the form. If you haven't received the form, please check your SPAM box or contact the administration in charge."]
[]
["General information",null,"Criteria 3 - Volume",null,null,"Criteria 4 - Use",null,null,null,"Criteria 5 - Accessibility",null,"Criteria 6 - Surroundings",null,null,null,null,null,null,null,null,null,"General remarks"]
[null,null,null,null,null,null,null,null,null,null,null,"Residential",null,"Recreational / Touristic",null,"Agricultural",null,"Industrial",null,"Natural"]
["DLM ID","Landfill name","Surface area (m²)","Depth below ground level (m)","Height above ground level (m)","Type of cover","Surface conditions","Slope angle","Erosion","Paved roads?","Accessible with heavy equipment? ","Present Res","Future Res","Present Rec","Future Rec","Present Agr","Future Agr","Present Ind","Future Ind","Present Nat","Future Nat","Remarks"]

{"sheet":"Compare_field_data","index":4,"n_rows":9,"n_cols":22,"rows_kept":9,"cut":false,"hidden":false,"merged":[[3,10,3,13],[6,0,6,1],[6,2,6,4],[6,5,6,8],[6,9,6,10],[6,11,6,20],[7,11,7,12],[7,13,7,14],[7,15,7,16],[7,17,7,18],[7,19,7,20]]}
["Compare data site visit and general database"]
["Compare the data collected during the site visit with the data from the 'general database'.",null,null,null,null,null,"If you want to make changes in the working database, please change the content in the pale green cells and press the button \"change fields in working database\". "]
[]
[null,null,null,null,null,null,null,null,null,null,"Change fields in Working_database"]
[]
[]
["General information",null,"Criteria 3 - Volume",null,null,"Criteria 4 - Use",null,null,null,"Criteria 5 - Accessibility",null,"Criteria 6 - Surroundings",null,null,null,null,null,null,null,null,null,"General remarks"]
[null,null,null,null,null,null,null,null,null,null,null,"Residential",null,"Recreational / Touristic",null,"Agricultural",null,"Industrial",null,"Natural"]
["DLM ID","Landfill name","Surface area (m²)","Depth below ground level (m)","Height above ground level (m)","Type of cover","Surface conditions","Slope angle","Erosion","Paved roads?","Accessible with heavy equipment?","Present Res","Future Res","Present Rec","Future Rec","Present Agr","Future Agr","Present Ind","Future Ind","Present Nat","Future Nat","Remarks"]

{"sheet":"ELFM_ranking","index":5,"n_rows":10,"n_cols":15,"rows_kept":10,"cut":false,"hidden":false,"merged":[[1,4,1,6],[3,6,3,7],[3,3,3,4],[3,9,3,10],[3,0,3,1]]}
["Ranking per ELFM scenario"]
[null,null,null,null,"Complete ranking",null,null,null,null,"Ranking based on data in working database"]
[]
["Ranking\nWaste-to-Material",null,null,"Ranking\nWaste-to-Energy",null,null,"Ranking \nWaste-to-Land",null,null,"Ranking \nIntermediate Use"]
["Minimum",{"$f":"MIN(Ranking_WtM[WtM])","v":0},null,"Minimum",{"$f":"MIN(Ranking_WtE[WtE])","v":0},null,"Minimum",{"$f":"MIN(Ranking_WtL[WtL])","v":0},null,"Minimum",{"$f":"MIN(Ranking_WIU[IU])","v":0}]
["Maximum",{"$f":"MAX(Ranking_WtM[WtM])","v":0},null,"Maximum",{"$f":"MAX(Ranking_WtE[WtE])","v":0},null,"Maximum",{"$f":"MAX(Ranking_WtL[WtL])","v":0},null,"Maximum",{"$f":"MAX(Ranking_WIU[IU])","v":0}]
["Average",{"$f":"AVERAGE(Ranking_WtM[WtM])","v":{"$error":"#DIV/0!"}},null,"Average",{"$f":"AVERAGE(Ranking_WtE[WtE])","v":{"$error":"#DIV/0!"}},null,"Average",{"$f":"AVERAGE(Ranking_WtL[WtL])","v":{"$error":"#DIV/0!"}},null,"Average",{"$f":"AVERAGE(Ranking_WIU[IU])","v":{"$error":"#DIV/0!"}}]
["Median",{"$f":"MEDIAN(Ranking_WtM[WtM])","v":{"$error":"#NUM!"}},null,"Median",{"$f":"MEDIAN(Ranking_WtE[WtE])","v":{"$error":"#NUM!"}},null,"Median",{"$f":"MEDIAN(Ranking_WtL[WtL])","v":{"$error":"#NUM!"}},null,"Median",{"$f":"MEDIAN(Ranking_WIU[IU])","v":{"$error":"#NUM!"}}]
[]
["Landfill","WtM",null,"Landfill","WtE",null,"Landfill","WtL",null,"Landfill","IU",null,"Landfill ","Quick response","Reason"]

{"sheet":"ELFM_site","index":6,"n_rows":32,"n_cols":16,"rows_kept":32,"cut":false,"hidden":false,"merged":[[23,4,23,5],[24,4,24,5],[30,4,30,5],[31,4,31,5],[25,4,25,5],[26,4,26,5],[27,4,27,5],[28,4,28,5],[29,4,29,5]]}
["ELFM potential "]
[]
["DLM ID or/and Landfill name",null,null,null,null,null,null,null,null,null,null,null,"Characteristics landfill: "]
[]
["Quick response",null,null,null,null,null,"Because of ",null,null,null,null,null,"The landfill consists of …",null,null,"MSW"]
[null,null,null,null,null,null,null,null,null,null,null,null,"The landfill dates back to:"]
[null,null,null,null,null,null,"Site","Average",null,null,null,null,"Volume (m³):"]
[null,null,null,"Scenario 1 ","WtM",null,0,{"$f":"ELFM_ranking!B7","v":{"$error":"#DIV/0!"}},null,null,null,null,"Surface conditions:"]
["Summary score per scenario",null,null,"Scenario 2","WtE",null,0,{"$f":"ELFM_ranking!E7","v":{"$error":"#DIV/0!"}}]
[null,null,null,"Scenario 3","WtL",null,0,{"$f":"ELFM_ranking!E7","v":{"$error":"#DIV/0!"}}]
[null,null,null,"Scenario 4","IU",null,0,{"$f":"ELFM_ranking!K7","v":{"$error":"#DIV/0!"}}]
[]
[]
[]
[]
[]
[]
[]
[]
[]
[]
[]
[null,null,null,null,null,null,"WtM","WtE","WtL","IU"]
[null,null,null,"Criteria 1","Type",null,0,0,0,0]
["Sum per criteria",null,null,"Criteria 2","Age",null,0,0,0,0]
[null,null,null,"Criteria 3","Volume",null,0,0,0,0]
[null,null,null,"Criteria 4","Use ",null,0,0,0,0]
[null,null,null,"Criteria 5","Accessibility",null,0,0,0,0]
[null,null,null,"Criteria 6","Surroundings",null,0,0,0,0]
[null,null,null,"Criteria 6a","Drinking water protection area",null,0,0,0,0]
[null,null,null,"Criteria 6b","Nature area",null,0,0,0,0]
[null,null,null,"Criteria 6c","Flooding risk",null,0,0,0,0]

{"sheet":"Points_scenario","index":7,"n_rows":159,"n_cols":15,"rows_kept":159,"cut":false,"hidden":true,"merged":[[104,1,105,1],[1,0,21,0],[15,1,17,1],[68,20,68,23],[94,1,97,1],[56,1,58,1],[13,1,14,1],[20,1,21,1],[64,0,74,0],[84,1,88,1],[90,1,92,1],[65,1,67,1],[69,1,71,1],[154,0,156,0],[109,0,136,0],[1,7,12,7],[1,1,12,1],[50,1,52,1],[27,1,28,1],[32,1,33,1],[38,1,40,1],[80,1,82,1],[44,1,46,1],[101,1,102,1],[141,0,143,0],[100,0,104,0],[148,0,149,0],[79,0,96,0],[73,1,75,1]]}
[null,null,"Code","WtE","WtL","WtM","IU",null,null,null,"Indicator weighting"]
["Type (selection based on Y/N)","Which waste type suits best or is primarily present on this landfill?","MSW",2,1,2,1,"Slechts 1 mogelijkheid met Y ",null,null,"Code","WtE","WtL","WtM","IU"]
[null,null,"Industrial",2,0,2,1,null,null,null,"Type",3,3,3,1]
[null,null,"Dredging materials",3,0,1,0,null,null,null,"Age",2,1,3,1]
[null,null,"WWT sludge",3,0,1,0,null,null,null,"Volume",3,2,3,1]
[null,null,"Inert",0,5,3,0,null,null,null,"Use",1,1,1,1]
[null,null,"Fly ash",0,3,5,0,null,null,null,"Accessibility",2,2,2,1]
[null,null,"Asbestos",0,0,0,3,null,null,null,"Surroundings",2,3,2,3]
[null,null,"Metal slags",0,0,5,0,null,null,null,"Sum"]
[null,null,"Mining waste",0,0,5,0]
[null,null,"Military waste",0,0,2,1]
[null,null,"Other",1,0,1,2]
[null,null,"Code","WtE","WtL","WtM","IU",null,null,null,"Individuele sommen per categorie worden gemaakt, en vervolgens vermenigvuldigd met de wegingstabel (boven)"]
[null,"Is this landfill documented as being a mono landfill?","Y",4,4,5,0,null,null,null,"Quick responses linken aan een specifieke score was te moeilijk om neer te schrijven zodat jij ermee zou kunnen programmeren. "]
[null,null,"N",2,1,1,2,"Som"]
[null,"In case you selected more than one waste type, how is the landfill build up?","Code","WtE","WtL","WtM","IU",null,null,null,"Bepaalde, specifieke combinaties (blad 3) leiden tot een quick respons. Dit is een lijst die de komende jaren onderhevig zal zijn "]
[null,null,"Heterogenous",2,0,1,2,null,null,null,"aan verandering en vernieuwing. Als je specifiek van dit luik kunt neerschrijven hoe "]
[null,null,"Layered",3,0,3,0,null,null,null,"het werkt, kunnen wij in de toekomst zelf zaken aanvullen/wijzigen."]
[null,null,"N/a (monolandfill)",4,0,4,0]
[null,null,"Code","WtE","WtL","WtM","IU"]
[null,"Did you spot harmfull waste during your site visit?","Y",2,2,2,0,"Som"]
[null,null,"N",0,0,0,1]
[null,null,null,null,null,null,null,"Output 1"]
[]
[]
["Age (keuzemenu)",null,"Code","WtE","WtL","WtM","IU"]
[null,"Select the era of main activities on this landfill.","<1955",1,2,1,2]
[null,"When Type = MSW or Industrial","1955-1980",4,2,4,1]
[null,null,"1980-1999",3,2,3,2]
[null,null,">1999 documented",3,2,3,2]
[null,null,">1999 not documented",1,2,1,3]
[null,null,"Code","WtE","WtL","WtM","IU"]
[null,"When type = inert waste or asbestos","<1955",0,3,3,2]
[null,null,"1955-1980",0,3,3,2]
[null,null,"1980-1999",0,3,3,2]
[null,null,">1999 documented",0,3,3,2]
[null,null,">1999 not documented",0,2,2,2]
[null,null,"Code","WtE","WtL","WtM","IU"]
[null,"When type = Other","<1955",0,2,1,4]
[null,null,"1955-1980",0,2,4,1]
[null,null,"1980-1999",0,2,3,2]
[null,null,">1999 documented",0,2,4,1]
[null,null,">1999 not documented",0,2,2,3]
[null,null,"Code","WtE","WtL","WtM","IU"]
[null,"When type = WWT sludge, Military waste or dredging materials","<1955",1,1,1,1]
[null,null,"1955-1980",4,1,4,1]
[null,null,"1980-1999",3,1,3,1]
[null,null,">1999 documented",4,1,4,1]
[null,null,">1999 not documented",2,0,2,3]
[null,null,"Code","WtE","WtL","WtM","IU"]
[null,"When type = fly ash","<1955",0,2,3,1]
[null,null,"1955-1980",0,3,5,1]
[null,null,"1980-1999",0,3,5,2]
[null,null,">1999 documented",0,4,5,3]
[null,null,">1999 not documented",0,2,1,4]
[null,null,"Code","WtE","WtL","WtM","IU"]
[null,"When type =  Mining waste or metal slags","<1955",0,1,5,1]
[null,null,"1955-1980",0,1,5,1]
[null,null,"1980-1999",0,1,4,1]
[null,null,">1999 documented",0,1,3,1]
[null,null,">1999 not documented",0,1,2,2]
[null,null,null,null,null,null,null,"Output 2"]
[]
[]
["Volume",null,"Code","WtE","WtL","WtM","IU"]
[null,"When type = MSW, industrial or Other","Small (default <35000)",2,4,2,1]
[null,null,"Average (default 35000-350000)",3,2,3,2]
[null,null,"Large (default >350000)",4,1,4,1]
[null,null,"Code","WtE","WtL","WtM","IU"]
[null,"When type = dredging materials, WWT sludge, inert, fly ash, asbestos or military waste","Small (default <35000)",0,1,3,0]
[null,null,"Average (default 35000-350000)",0,1,3,1]
[null,null,"Large (default >350000)",0,1,4,0]
[null,null,"Code","WtE","WtL","WtM","IU"]
[null,"Type = Mining waste or Metal slags","Small (default <35000)",0,1,5,0]
[null,null,"Average (default 35000-350000)",0,2,5,0]
[null,null,"Large (default >350000)",0,3,5,0]
[null,null,null,null,null,null,null,"Output 3"]
[]
[]
["Use",null,"Code","WtE","WtL","WtM","IU"]
[null,"4.1 What type of cover was used to seal the landfill?","Geomembrane",3,3,3,1]
[null,null,"Mineral cover",2,1,3,2]
[null,null,"Soil",0,3,3,3]
[null,null,"Code","WtE","WtL","WtM","IU"]
[null,"4.2 What's the current condition of the terrain?","Grass",3,3,3,0]
[null,null,"Rough",3,3,3,0]
[null,null,"Shrubs",2,2,2,1]
[null,null,"Trees",3,1,0,3]
[null,null,"Other",1,1,0,3]
[null,null,"Code","WtE","WtL","WtM","IU"]
[null,"Slope angle?","Flat",3,4,3,0]
[null,null,"Less than 15°",3,2,3,1]
[null,null,"More than 15°",3,0,3,2]
[null,null,"Code","WtE","WtL","WtM","IU"]
[null,"Erosion","None",2,3,0,0]
[null,null,"Weak",1,2,2,1]
[null,null,"Severe",0,0,4,0]
[null,null,"Potential",2,0,2,1]
[null,null,null,null,null,null,null,"Output 4"]
[]
["Accessibility",null,"Code","WtE","WtL","WtM","IU"]
[null,"5.1 Are there paved roads on the terrain?","Y",3,3,3,0]
[null,null,"N",0,0,0,1]
[null,null,"Code","WtE","WtL","WtM","IU"]
[null,"5.2 Accessible with heavy equipment?","Y",4,4,4,0]
[null,null,"N",0,0,0,2]
[null,null,null,null,null,null,null,"Output 5"]
[]
[]
["Surroundings",null,"Code","WtE","WtL","WtM","IU"]
[null,"Is the site presently located in a residential area?","Y",0,5,2,0]
[null,null,"N",0,0,0,1]
[null,null,"Code","WtE","WtL","WtM","IU"]
[null,"Is the site interesting for residential purposes in the future?","Y",0,5,2,0]
[null,null,"N",0,0,0,3]
[null,null,"Code","WtE","WtL","WtM","IU"]
[null,"Is the site presently located in a recreational area?","Y",0,2,1,2]
[null,null,"N",0,0,0,1]
[null,null,"Code","WtE","WtL","WtM","IU"]
[null,"Is the site interesting for recreational purposes in the future?","Y",0,2,1,0]
[null,null,"N",0,1,0,2]
[null,null,"Code","WtE","WtL","WtM","IU"]
[null,"Is the site presently located in an agricultural area?","Y",0,1,0,2]
[null,null,"N",0,2,1,1]
[null,null,"Code","WtE","WtL","WtM","IU"]
[null,"Is the site interesting for agricultural purposes in the future?","Y",0,0,0,3]
[null,null,"N",0,3,1,0]
[null,null,"Code","WtE","WtL","WtM","IU"]
[null,"Is the site presently located in an industrial area?","Y",0,5,2,0]
[null,null,"N",0,0,0,1]
[null,null,"Code","WtE","WtL","WtM","IU"]
[null,"Is the site interesting for industrial purposes in the future?","Y",0,5,2,0]
[null,null,"N",0,0,0,3]
[null,null,"Code","WtE","WtL","WtM","IU"]
[null,"Is the site presently located in a natural area?","Y",0,0,0,4]
[null,null,"N",0,3,1,1]
[null,null,"Code","WtE","WtL","WtM","IU"]
[null,"Is the site interesting for natural purposes in the future?","Y",0,0,0,4]
[null,null,"N",0,4,1,0]
[null,null,null,null,null,null,null,"Output 6"]
[]
["Drink water zone",null,"Code","WtE","WtL","WtM","IU"]
[null,null,"None",0,0,0,2]
[null,null,"Critical",4,4,4,0]
[null,null,"Severe",3,3,3,0]
[null,null,"Acceptable",2,2,2,1]
[null,null,null,null,null,null,null,"Output 7"]
[]
["Nature area",null,"Code","WtE","WtL","WtM","IU"]
[null,null,"Y",0,0,0,4]
[null,null,"N",4,4,4,0]
[null,null,null,null,null,null,null,"Output 8"]
[]
[null,null,"Code","WtE","WtL","WtM","IU"]
["Flooding risk",null,"None",0,0,0,1]
[null,null,"High",4,4,4,1]
[null,null,"Medium",2,2,2,2]
[null,null,"Low",2,2,2,4]
[null,null,null,null,null,null,null,"Output 9"]

{"sheet":"QR_general","index":8,"n_rows":29,"n_cols":8,"rows_kept":29,"cut":false,"hidden":true,"merged":[]}
["Field1","Value1","Field2","Value2","Field3","Value3","Quick Response","Reason"]
["Flooding risk","Low|Medium|High","Nature area","Y",null,null,"Medium term interim use","Potential ecological risk in the future (non-inert waste)"]
["MSW","Y","Drinking water protection area","Critical","Flooding risk","High","Urgent solution","Might cause risks for human health and/or ecological damage"]
["Industrial","Y","Drinking water protection area","Critical","Flooding risk","High","Urgent solution","Might cause risks for human health and/or ecological damage"]
["Metal slags","Y","Drinking water protection area","Critical","Flooding risk","High","Urgent solution","Might cause risks for human health and/or ecological damage"]
["Mining waste","Y","Drinking water protection area","Critical","Flooding risk","High","Urgent solution","Might cause risks for human health and/or ecological damage"]
["Asbestos","Y","Drinking water protection area","Critical","Flooding risk","High","Urgent solution","Might cause risks for human health and/or ecological damage"]
["Mono landfill?","Y","Metal slags","Y",null,null,"Orion","Valuable content"]
["Mono landfill?","Y","Mining waste","Y",null,null,"Orion","Valuable content"]
["MSW","Y","Period of main activities","<1955","Present Agr","Y","Medium term interim use","Agricultural development"]
["MSW","Y","Period of main activities","<1955","Present Nat","Y","Medium term interim use","Nature development"]
["MSW","Y","Period of main activities",">1999 documented",null,null,"Medium term interim use","Currently only non-recyclable goods"]
["Paved roads?","N","Accessible with heavy equipment?","N","Present Ind","Y","Medium term interim use","Infrastructure development"]
["Paved roads?","N","Accessible with heavy equipment?","N","Present Res","Y","Medium term interim use","Infrastructure development"]
["Paved roads?","Y","Future Ind","Y","Surface conditions","Rough|Grass","Medium term interim use","Infrastructure development (e.g. solar panels)"]
["Paved roads?","Y","Future Res","Y","Surface conditions","Rough|Grass","Medium term interim use","Infrastructure development (e.g. solar panels)"]
["Period of main activities",">1999 not documented","Harmful waste spotted?","Y",null,null,"Urgent solution","Potential risk for human health and/or ecological damage (e.g. illegal dump site)"]
["Future Agr","Y","Paved roads?","N","Type of cover","Soil","Medium term interim use","Agricultural development (e.g. energy crops)"]
["Future Nat","Y","Present Agr","Y","Type of cover","Soil","Long term interim use","Agricultural development (e.g. agroforestry)"]
["Nature area","Y","Present Nat","Y",null,null,"Long term interim use","Nature development and conservation"]
["Surface conditions","Trees","Future Nat","Y",null,null,"Long term interim use","Nature development"]
["Volume (m³)","Small (default <35000)","Drinking water protection area","Critical",null,null,"Urgent solution","Might cause risks for human health"]
["Volume (m³)","Small (default <35000)","Flooding risk","High",null,null,"Urgent solution","Potential ecological risk in the future (non-inert waste)"]
["Volume (m³)","Small (default <35000)","Metal slags","Y","Period of main activities","<1955","Orion","Valuable content"]
["Volume (m³)","Small (default <35000)","Mining waste","Y","Period of main activities","<1955","Orion","Valuable content"]
["Volume (m³)","Small (default <35000)","Present Ind","Y",null,null,"Orion","Land value/pressure"]
["Volume (m³)","Average (default 35000-350000)","Present Ind","Y",null,null,"Orion","Land value/pressure"]
["Volume (m³)","Small (default <35000)","Present Res","Y",null,null,"Orion","Land value/pressure"]
["Volume (m³)","Average (default 35000-350000)","Present Res","Y",null,null,"Orion","Land value/pressure"]